bitfinex/quotes_BTCUSD_20250225
["timestamp","ask_amount","ask_price","bid_price","bid_amount"]
[1740517041289,0.3,88459.0,88430.0,0.01757923]
[1740517041488,0.3,88459.0,88427.0,0.013]
[1740517041489,0.226107,88454.0,88439.0,0.01757923]
[1740517042098,0.169605,88441.0,88439.0,0.01757923]
[1740517042301,0.169606,88440.0,88439.0,0.01757923]
[1740517042727,0.226134,88443.0,88435.0,0.01757923]
[1740517042953,0.226134,88443.0,88417.0,0.09047266]
[1740517042954,0.02672957,88443.0,88421.0,0.01757923]
[1740517043084,0.04016171,88447.0,88424.0,0.01757923]
[1740517043279,0.169635,88425.0,88424.0,0.01757923]
[1740517043912,0.169635,88425.0,88417.0,0.00011922]
[1740517043913,0.169644,88420.0,88419.0,0.01757923]
[1740517044118,0.169635,88425.0,88424.0,0.01757923]
[1740517044547,0.3,88434.0,88429.0,0.01757923]
[1740517044548,0.169625,88430.0,88429.0,0.01757923]
[1740517044746,0.226163,88432.0,88429.0,0.01757923]
[1740517044946,0.22612,88449.0,88431.0,0.0798]
[1740517045255,0.22612,88449.0,88434.0,0.01757923]
[1740517045548,0.226094,88459.0,88437.0,0.01757923]
[1740517045752,0.3,88449.0,88439.0,0.01757923]
[1740517045935,0.169596,88446.0,88439.0,0.01757923]
[1740517046153,0.3,88445.0,88439.0,0.01757923]
[1740517046502,0.469596,88445.0,88439.0,0.01757923]
[1740517046915,0.3,88445.0,88439.0,0.01757923]
[1740517047119,0.26528671,88447.0,88431.0,0.0798]
[1740517047120,0.03916171,88447.0,88446.0,0.18717423]
[1740517047328,0.0008476,88447.0,88446.0,0.42660443]
[1740517047542,0.00869422,88464.0,88446.0,0.42660443]
[1740517047543,0.00869422,88464.0,88463.0,0.18714123]
[1740517047744,0.0134661,88526.0,88468.0,0.18713123]
[1740517047745,0.00846441,88496.0,88468.0,0.18713123]
[1740517047966,0.169517,88487.0,88468.0,0.39293361]
[1740517048167,0.03971151,88476.0,88468.0,0.40589227]
[1740517048395,0.0012695,88469.0,88468.0,0.48809227]
[1740517048560,0.0012695,88469.0,88468.0,0.53409227]
[1740517048776,0.169499,88496.0,88469.0,0.0822]
[1740517048956,0.00097274,88486.0,88473.0,0.11374753]
[1740517049835,0.00097274,88486.0,88485.0,0.01757923]
[1740517050039,0.22603,88484.0,88470.0,0.11374753]
[1740517050210,0.00097274,88486.0,88484.0,0.01757923]
[1740517050455,0.226027,88485.0,88470.0,0.11374753]
[1740517050628,0.226033,88483.0,88470.0,0.11374753]
[1740517051001,0.00097274,88486.0,88479.0,0.01757923]
[1740517051197,0.17049074,88486.0,88473.0,0.006]
[1740517051432,0.17049074,88486.0,88485.0,0.01757923]
[1740517051636,0.169581,88453.0,88452.0,0.0474]
[1740517051838,0.00953333,88486.0,88463.0,0.01757923]
[1740517052038,0.169547,88471.0,88470.0,0.014]
[1740517052215,0.469547,88471.0,88470.0,0.007]
[1740517052544,0.169604,88441.0,88440.0,0.0822]
[1740517052742,0.169604,88441.0,88440.0,0.09977923]
[1740517053099,0.169585,88451.0,88450.0,0.01757923]
[1740517053345,0.169585,88451.0,88440.0,0.0826214]
[1740517053346,0.3,88443.0,88440.0,0.0004214]
[1740517053521,0.469604,88441.0,88440.0,0.01800063]
[1740517053730,0.469604,88441.0,88440.0,0.0004214]
[1740517054087,0.50968687,88441.0,88440.0,0.0004214]
[1740517054264,0.34108287,88441.0,88440.0,0.02400063]
[1740517054492,0.34008287,88441.0,88440.0,0.01800063]
[1740517054669,0.50968687,88441.0,88440.0,0.01800063]
[1740517054868,0.34108287,88441.0,88440.0,0.02300063]
[1740517055173,0.04108287,88441.0,88440.0,0.01800063]
[1740517055370,0.001,88441.0,88440.0,0.13174816]
[1740517055572,0.002,88441.0,88440.0,0.13674816]
[1740517055778,0.002,88441.0,88440.0,0.02300063]
[1740517056746,0.20861698,88443.0,88442.0,0.01757923]
[1740517056747,0.03901498,88443.0,88442.0,0.01757923]
[1740517056947,0.3,88448.0,88442.0,0.01757923]
[1740517057171,0.3,88448.0,88440.0,0.0054214]
[1740517057376,0.22613,88445.0,88444.0,0.01657923]
[1740517057550,0.22613,88445.0,88440.0,0.0004214]
[1740517057551,0.695713,88448.0,88447.0,0.01557923]
[1740517057763,0.169596,88446.0,88445.0,0.01557923]
[1740517057995,0.3,88463.0,88440.0,0.0054214]
[1740517058190,0.169595,88446.0,88445.0,0.01557923]
[1740517058392,0.226106,88454.0,88445.0,0.01557923]
[1740517058728,0.3,88455.0,88443.0,0.01557923]
[1740517058860,0.3,88448.0,88443.0,0.01557923]
[1740517059066,0.22608,88464.0,88440.0,0.0004214]
[1740517059067,0.3,88459.0,88449.0,0.01557923]
[1740517059287,0.169587,88451.0,88449.0,0.01557923]
[1740517059487,0.3,88459.0,88452.0,0.01557923]
[1740517059781,0.169564,88462.0,88458.0,0.01557923]
[1740517059998,0.469567,88461.0,88458.0,0.01557923]
[1740517060196,0.3,88461.0,88458.0,0.01557923]
[1740517060398,0.16957,88459.0,88458.0,0.01557923]
[1740517060809,0.52609,88461.0,88444.0,0.01457923]
[1740517060810,0.169596,88445.0,88444.0,0.01457923]
[1740517061010,0.3,88461.0,88440.0,0.0004214]
[1740517061171,0.169596,88446.0,88445.0,0.01457923]
[1740517061383,0.169604,88441.0,88440.0,0.0004214]
[1740517063912,0.169604,88441.0,88440.0,0.0014214]
[1740517064136,0.169604,88441.0,88440.0,0.0031158]
[1740517064885,0.170604,88441.0,88440.0,0.0091158]
[1740517068188,0.470604,88441.0,88440.0,0.0091158]
[1740517068515,0.169639,88423.0,88422.0,0.01457923]
[1740517068717,0.169639,88423.0,88422.0,0.01470557]
[1740517068962,0.169639,88423.0,88422.0,0.00012634]
[1740517069590,0.469639,88423.0,88422.0,0.00012634]
[1740517069869,0.469639,88423.0,88395.0,0.17956]
[1740517069870,0.3,88420.0,88399.0,0.079]
[1740517070061,0.169682,88401.0,88399.0,0.079]
[1740517070264,0.169679,88402.0,88399.0,0.079]
[1740517070465,0.226238,88403.0,88400.0,0.01457923]
[1740517070667,0.226224,88408.0,88399.0,0.079]
[1740517070808,0.3,88416.0,88407.0,0.01457923]
[1740517071009,0.169656,88414.0,88413.0,0.01457923]
[1740517071431,0.169656,88414.0,88413.0,0.01357923]
[1740517071629,0.169662,88411.0,88410.0,0.01357923]
[1740517072040,0.20896671,88411.0,88410.0,0.01357923]
[1740517072627,0.03930471,88411.0,88410.0,0.29699076]
[1740517072970,0.08642077,88450.0,88417.0,0.01357923]
[1740517073231,0.3,88421.0,88417.0,0.01357923]
[1740517074110,0.169648,88418.0,88417.0,0.01357923]
[1740517074521,0.169648,88418.0,88417.0,0.01257923]
[1740517075283,0.169648,88418.0,88417.0,0.01357923]
[1740517075799,0.169648,88418.0,88417.0,0.01257923]
[1740517075996,0.169648,88418.0,88417.0,0.01357923]
[1740517077145,0.16550515,88420.0,88417.0,0.01357923]
[1740517077327,0.169648,88418.0,88417.0,0.01357923]
[1740517077907,0.169648,88418.0,88417.0,0.01257923]
[1740517078114,0.03908521,88421.0,88417.0,0.01257923]
[1740517078314,0.169648,88418.0,88417.0,0.01457923]
[1740517078713,0.169643,88421.0,88417.0,0.01257923]
[1740517078937,0.169643,88421.0,88407.0,0.01257923]
[1740517078938,0.3,88420.0,88407.0,0.01257923]
[1740517079138,0.469648,88418.0,88417.0,0.002]
[1740517080179,0.469648,88418.0,88417.0,0.003]
[1740517080320,0.26578513,88421.0,88417.0,0.01257923]
[1740517080321,0.03959413,88421.0,88417.0,0.01257923]
[1740517080521,0.169631,88427.0,88419.0,0.123]
[1740517080857,0.3,88426.0,88419.0,0.122]
[1740517081181,0.226124,88447.0,88419.0,0.122]
[1740517081182,0.08742077,88472.0,88440.0,0.01257923]
[1740517081380,0.149498,88479.0,88454.0,0.169579]
[1740517081381,0.0395883,88455.0,88454.0,0.169579]
[1740517081584,0.0008474,88455.0,88454.0,0.29590576]
[1740517081997,0.0008474,88455.0,88454.0,0.31044661]
[1740517082377,0.00097361,88455.0,88454.0,0.01257923]
[1740517082560,0.03954617,88455.0,88454.0,0.01257923]
[1740517082768,0.00097361,88455.0,88454.0,0.31044661]
[1740517083562,0.00797361,88455.0,88454.0,0.31044661]
[1740517083760,0.00797361,88455.0,88454.0,0.39264661]
[1740517084278,0.00197361,88455.0,88454.0,0.23566761]
[1740517084478,0.00197361,88455.0,88454.0,0.09877923]
[1740517084704,0.17255061,88455.0,88454.0,0.09877923]
[1740517084860,0.00297361,88455.0,88454.0,0.01657923]
[1740517085063,0.00297361,88455.0,88454.0,0.01557923]
[1740517085064,0.00197361,88455.0,88454.0,0.01557923]
[1740517085257,0.00097361,88455.0,88454.0,0.01257923]
[1740517085465,0.00197361,88455.0,88454.0,0.01357923]
[1740517085685,0.00297361,88455.0,88454.0,0.01657923]
[1740517085885,0.17255061,88455.0,88454.0,0.004]
[1740517086482,0.17255061,88455.0,88454.0,0.01657923]
[1740517086705,0.17155061,88455.0,88454.0,0.01557923]
[1740517086910,0.17155061,88455.0,88444.0,0.0783]
[1740517086911,0.169583,88452.0,88450.0,0.01257923]
[1740517087086,0.00097361,88455.0,88454.0,0.003]
[1740517087428,0.3,88454.0,88448.0,0.01257923]
[1740517087625,0.00097361,88455.0,88434.0,0.1227]
[1740517087872,0.226135,88443.0,88434.0,0.1227]
[1740517088111,0.00097361,88455.0,88434.0,0.1227]
[1740517088484,0.02368007,88455.0,88434.0,0.1227]
[1740517088681,0.02368007,88455.0,88410.0,0.0904563]
[1740517088682,0.3,88441.0,88419.0,0.0485]
[1740517088884,0.169636,88425.0,88424.0,0.01257923]
[1740517089297,0.169644,88420.0,88419.0,0.0485]
[1740517089494,0.469644,88420.0,88419.0,0.0016954]
[1740517089694,0.169669,88407.0,88406.0,0.01257923]
[1740517090029,0.169676,88404.0,88402.0,0.0493]
[1740517090230,0.169677,88403.0,88402.0,0.04941922]
[1740517090608,0.03970186,88420.0,88405.0,0.01257923]
[1740517090900,0.469644,88420.0,88419.0,0.001]
[1740517091100,0.3,88420.0,88411.0,0.01257923]
[1740517091305,0.3,88420.0,88411.0,0.01157923]
[1740517091306,0.16966,88412.0,88411.0,0.01157923]
[1740517091623,0.526196,88419.0,88402.0,0.05041922]
[1740517091624,0.170677,88403.0,88402.0,0.06499845]
[1740517091747,0.170677,88403.0,88402.0,0.00011922]
[1740517091955,0.170677,88403.0,88402.0,0.01169845]
[1740517092191,0.470677,88403.0,88402.0,0.00011922]
[1740517092393,0.226233,88405.0,88402.0,0.00011922]
[1740517092655,0.169677,88403.0,88402.0,0.00011922]
[1740517093050,0.226172,88428.0,88405.0,0.01157923]
[1740517093371,0.169659,88413.0,88405.0,0.01157923]
[1740517093550,0.22617,88429.0,88405.0,0.01157923]
[1740517093774,0.16966,88412.0,88411.0,0.001]
[1740517093929,0.00860361,88430.0,88402.0,0.00211922]
[1740517093930,0.00860361,88430.0,88404.0,0.01157923]
[1740517094132,0.169671,88406.0,88405.0,0.01157923]
[1740517094732,0.26827006,88420.0,88405.0,0.01157923]
[1740517094934,0.169671,88406.0,88405.0,0.01457923]
[1740517095516,0.226224,88408.0,88405.0,0.01457923]
[1740517095739,0.3,88411.0,88405.0,0.01457923]
[1740517096106,0.04007706,88420.0,88419.0,0.01157923]
[1740517096445,0.08842077,88459.0,88426.0,0.01157923]
[1740517096446,0.169627,88429.0,88426.0,0.01157923]
[1740517096644,0.226106,88454.0,88426.0,0.01157923]
[1740517096843,0.226106,88454.0,88419.0,0.0828]
[1740517096844,0.03862448,88454.0,88438.0,0.01157923]
[1740517097043,0.169605,88441.0,88438.0,0.01157923]
[1740517097290,0.3,88453.0,88438.0,0.01157923]
[1740517097427,0.3,88464.0,88438.0,0.01157923]
[1740517097628,0.3,88450.0,88438.0,0.01157923]
[1740517097944,0.03980076,88455.0,88454.0,0.01157923]
[1740517098315,0.00097361,88455.0,88454.0,0.01057923]
[1740517098725,0.00097361,88455.0,88454.0,0.13886761]
[1740517099211,0.00097361,88455.0,88454.0,0.12432676]
[1740517099387,0.00097361,88455.0,88454.0,0.30844661]
[1740517099588,0.00097361,88455.0,88454.0,0.43614661]
[1740517099784,0.00097361,88455.0,88454.0,0.26656761]
[1740517100215,0.00597361,88455.0,88454.0,0.26456761]
[1740517100717,0.00097361,88455.0,88454.0,0.26456761]
[1740517101015,0.00197361,88455.0,88454.0,0.27156761]
[1740517101215,0.00297361,88455.0,88454.0,0.27256761]
[1740517101420,0.00197361,88455.0,88454.0,0.27156761]
[1740517102867,0.00297361,88455.0,88454.0,0.27456761]
[1740517104092,0.00297361,88455.0,88454.0,0.14627923]
[1740517105348,0.17255061,88455.0,88454.0,0.1377]
[1740517105547,0.00297361,88455.0,88454.0,0.01857923]
[1740517105908,0.00297361,88455.0,88454.0,0.30190576]
[1740517106118,0.00297361,88455.0,88454.0,0.14686761]
[1740517106668,0.00297361,88455.0,88454.0,0.13232676]
[1740517106870,0.17255061,88455.0,88454.0,0.01]
[1740517107272,0.3,88454.0,88438.0,0.049]
[1740517107591,0.3,88454.0,88429.0,0.0759]
[1740517107793,0.169606,88440.0,88439.0,0.00857923]
[1740517108198,0.3,88452.0,88424.0,0.00857923]
[1740517108402,0.3,88452.0,88429.0,0.00857923]
[1740517108577,0.169625,88430.0,88429.0,0.00857923]
[1740517108755,0.169652,88416.0,88415.0,0.08447923]
[1740517109127,0.00857645,88441.0,88424.0,0.00857923]
[1740517109279,0.169635,88425.0,88424.0,0.00857923]
[1740517109659,0.30857645,88441.0,88427.0,0.00857923]
[1740517109660,0.00857645,88441.0,88427.0,0.00857923]
[1740517110005,0.3,88443.0,88415.0,0.0759]
[1740517110242,0.526135,88443.0,88424.0,0.00857923]
[1740517110474,0.00868451,88445.0,88431.0,0.00857923]
[1740517110605,0.007,88454.0,88439.0,0.00857923]
[1740517111024,0.169606,88440.0,88439.0,0.00857923]
[1740517111231,0.0008474,88455.0,88439.0,0.00857923]
[1740517111472,0.0008474,88455.0,88435.0,0.049]
[1740517111473,0.005,88443.0,88440.0,0.00857923]
[1740517111677,0.005,88443.0,88441.0,0.0818]
[1740517112042,0.3,88445.0,88441.0,0.0818]
[1740517112234,0.1696,88444.0,88441.0,0.0818]
[1740517112436,0.3,88445.0,88441.0,0.0818]
[1740517113691,0.169598,88444.0,88441.0,0.0818]
[1740517113985,0.169599,88444.0,88441.0,0.0818]
[1740517114203,0.169599,88444.0,88441.0,0.0828]
[1740517114395,0.169599,88444.0,88441.0,0.001]
[1740517114396,0.169602,88442.0,88441.0,0.001]
[1740517114569,0.169606,88440.0,88439.0,0.01027403]
[1740517114941,0.226136,88443.0,88439.0,0.01027403]
[1740517115141,0.469606,88440.0,88439.0,0.0016948]
[1740517115498,0.169652,88416.0,88409.0,0.0773]
[1740517116083,0.3,88439.0,88415.0,0.00869845]
[1740517116281,0.0116,88457.0,88419.0,0.00857923]
[1740517116460,0.169644,88420.0,88419.0,0.00857923]
[1740517117343,0.22619,88422.0,88419.0,0.00857923]
[1740517117544,0.3,88428.0,88419.0,0.00857923]
[1740517117751,0.001,88420.0,88419.0,0.00957923]
[1740517117950,0.002,88420.0,88419.0,0.30751361]
[1740517118274,0.002,88420.0,88419.0,0.26096761]
[1740517118491,0.395771,88435.0,88434.0,0.00857923]
[1740517118612,0.169616,88435.0,88434.0,0.00857923]
[1740517120703,0.169616,88435.0,88434.0,0.01257923]
[1740517121936,0.00830469,88452.0,88434.0,0.01257923]
[1740517122143,0.169616,88435.0,88434.0,0.01257923]
[1740517122353,0.169614,88436.0,88434.0,0.01257923]
[1740517122556,0.169611,88438.0,88434.0,0.01257923]
[1740517122760,0.169612,88437.0,88436.0,0.00857923]
[1740517124345,0.169612,88437.0,88436.0,0.01057923]
[1740517124482,0.226145,88439.0,88436.0,0.01057923]
[1740517124682,0.169612,88437.0,88436.0,0.01057923]
[1740517126324,0.0008474,88454.0,88452.0,0.00857923]
[1740517126450,0.0008474,88454.0,88453.0,0.29349034]
[1740517126656,0.0008474,88454.0,88453.0,0.30644861]
[1740517127464,0.0058474,88454.0,88453.0,0.30644861]
[1740517128004,0.0018474,88454.0,88453.0,0.31244861]
[1740517128363,0.049498,88479.0,88478.0,0.00857923]
[1740517128563,0.09712257,88479.0,88478.0,0.09017923]
[1740517128768,0.09712257,88479.0,88478.0,0.24932676]
[1740517129186,0.04991888,88479.0,88478.0,0.24932676]
[1740517129606,0.07104921,88479.0,88478.0,0.24932676]
[1740517130208,0.07104921,88479.0,88478.0,0.13957923]
[1740517130387,0.24058021,88479.0,88478.0,0.004]
[1740517130591,0.21944988,88479.0,88478.0,0.004]
[1740517130820,0.21944988,88479.0,88461.0,0.00857923]
[1740517130821,0.04991888,88479.0,88461.0,0.00857923]
[1740517131023,0.169564,88462.0,88461.0,0.00857923]
[1740517131171,0.3,88474.0,88467.0,0.00857923]
[1740517131370,0.169552,88468.0,88467.0,0.00857923]
[1740517131574,0.04991888,88479.0,88467.0,0.00857923]
[1740517131825,0.169547,88471.0,88470.0,0.00857923]
[1740517132583,0.169544,88473.0,88470.0,0.00857923]
[1740517132839,0.226044,88478.0,88470.0,0.00857923]
[1740517133029,0.169541,88474.0,88473.0,0.00857923]
[1740517133616,0.19106328,88476.0,88473.0,0.00857923]
[1740517133932,0.169541,88474.0,88473.0,0.00857923]
[1740517134102,0.169541,88474.0,88473.0,0.00957923]
[1740517134503,0.169541,88474.0,88473.0,0.01057923]
[1740517134744,0.169541,88474.0,88473.0,0.00957923]
[1740517134940,0.169541,88474.0,88473.0,0.01057923]
[1740517136323,0.169541,88474.0,88473.0,0.00957923]
[1740517136526,0.19106328,88476.0,88453.0,0.0797]
[1740517136527,0.226052,88475.0,88463.0,0.00857923]
[1740517136725,0.226052,88475.0,88453.0,0.0797]
[1740517136726,0.3,88477.0,88467.0,0.00857923]
[1740517136944,0.3,88475.0,88473.0,0.002]
[1740517137203,0.16956,88464.0,88463.0,0.00857923]
[1740517137450,0.169579,88454.0,88453.0,0.0797]
[1740517137581,0.169574,88457.0,88453.0,0.0797]
[1740517137789,0.169573,88458.0,88457.0,0.00857923]
[1740517138520,0.22607,88468.0,88457.0,0.00857923]
[1740517138720,0.169572,88458.0,88457.0,0.00857923]
[1740517138926,0.169572,88458.0,88453.0,0.0797]
[1740517138927,0.169579,88454.0,88453.0,0.00857923]
[1740517139081,0.169602,88442.0,88441.0,0.00857923]
[1740517140298,0.0086122,88454.0,88441.0,0.004]
[1740517140546,0.001,88458.0,88454.0,0.00857923]
[1740517140722,0.00854841,88464.0,88443.0,0.00857923]
[1740517140924,0.0008475,88454.0,88445.0,0.00857923]
[1740517141127,0.0008475,88454.0,88448.0,0.00857923]
[1740517141335,0.169612,88437.0,88436.0,0.0016948]
[1740517141851,0.21638467,88437.0,88436.0,0.0016948]
[1740517141994,0.04677267,88437.0,88419.0,0.0477]
[1740517142201,0.00116712,88438.0,88405.0,0.0477]
[1740517142202,0.169671,88406.0,88405.0,0.0477]
[1740517142425,0.00859604,88426.0,88423.0,0.00516737]
[1740517142667,0.226149,88437.0,88423.0,0.00516737]
[1740517142866,0.00116712,88438.0,88425.0,0.00516737]
[1740517143079,0.169633,88426.0,88425.0,0.00516737]
[1740517143234,0.169633,88426.0,88422.0,0.075]
[1740517143235,0.169642,88421.0,88420.0,0.00516737]
[1740517143437,0.3,88438.0,88425.0,0.00516737]
[1740517143637,0.169658,88413.0,88412.0,0.00516737]
[1740517143864,0.169669,88407.0,88406.0,0.07701922]
[1740517144091,0.395888,88409.0,88408.0,0.00516737]
[1740517144317,0.169669,88407.0,88406.0,0.00011922]
[1740517144500,0.169669,88407.0,88406.0,0.00528659]
[1740517144708,0.169668,88408.0,88407.0,0.00516737]
[1740517145115,0.169668,88408.0,88407.0,0.00416737]
[1740517145329,0.00116712,88409.0,88406.0,0.00428659]
[1740517145330,0.169669,88407.0,88406.0,0.00428659]
[1740517146081,0.170669,88407.0,88406.0,0.00428659]
[1740517146353,0.470669,88407.0,88406.0,0.00011922]
[1740517146968,0.469669,88407.0,88406.0,0.00011922]
[1740517147167,0.3,88406.0,88400.0,0.2]
[1740517147379,0.469681,88401.0,88400.0,0.2]
[1740517147809,0.469681,88401.0,88400.0,0.14533422]
[1740517148304,0.469681,88401.0,88346.0,0.10865267]
[1740517148305,0.00843061,88380.0,88354.0,0.0462]
[1740517148476,0.3,88351.0,88347.0,0.01756752]
[1740517148741,0.3,88351.0,88345.0,0.0016942]
[1740517148742,0.469786,88346.0,88345.0,0.0016942]
[1740517148943,0.16981,88334.0,88324.0,0.0761]
[1740517149095,0.469815,88331.0,88324.0,0.0761]
[1740517149271,0.469815,88331.0,88323.0,0.0497]
[1740517149475,0.469815,88331.0,88329.0,0.10050632]
[1740517149842,0.469815,88331.0,88330.0,0.00182043]
[1740517150046,0.469815,88331.0,88330.0,0.00172354]
[1740517150399,0.469815,88331.0,88323.0,0.0497]
[1740517150400,0.3,88331.0,88304.0,0.00416737]
[1740517150578,0.3,88331.0,88304.0,0.00429386]
[1740517150777,0.169864,88306.0,88304.0,0.00429386]
[1740517151187,0.169864,88306.0,88304.0,0.00012649]
[1740517151390,0.3,88305.0,88304.0,0.00012649]
[1740517151793,0.30116712,88305.0,88304.0,0.00012649]
[1740517152329,0.169911,88281.0,88280.0,0.01]
[1740517152529,0.16994,88266.0,88265.0,0.0828]
[1740517152877,0.51522337,88266.0,88265.0,0.00042163]
[1740517153099,0.169958,88257.0,88249.0,0.00416737]
[1740517153337,0.169958,88257.0,88236.0,7e-05]
[1740517153338,0.169987,88242.0,88241.0,0.00416737]
[1740517153530,0.169992,88239.0,88236.0,7e-05]
[1740517153744,0.169991,88240.0,88236.0,7e-05]
[1740517153900,0.17115812,88240.0,88236.0,7e-05]
[1740517154501,0.3,88239.0,88236.0,7e-05]
[1740517154703,0.3846573,88239.0,88236.0,7e-05]
[1740517154927,0.170041,88214.0,88209.0,0.0815]
[1740517155130,0.470041,88214.0,88200.0,0.00254]
[1740517155328,0.470041,88214.0,88122.0,0.36212408]
[1740517155329,0.1,88179.0,88134.0,0.02286587]
[1740517155518,0.01156,88184.0,88135.0,0.00158838]
[1740517155719,0.17018,88142.0,88141.0,0.00158815]
[1740517155923,0.17018,88142.0,88117.0,7e-05]
[1740517156119,0.3,88141.0,88117.0,7e-05]
[1740517156430,0.570214,88124.0,88117.0,7e-05]
[1740517156759,0.570214,88124.0,88078.0,0.0488]
[1740517156760,0.00862155,88115.0,88078.0,0.0488]
[1740517156963,0.170301,88080.0,88079.0,0.11374753]
[1740517157121,0.00862155,88098.0,88078.0,0.0488]
[1740517157327,0.227035,88092.0,88078.0,0.0488]
[1740517157529,0.00219668,88079.0,88078.0,0.0488]
[1740517157730,0.00219668,88079.0,88075.0,0.0005]
[1740517158178,0.02443253,88078.0,88075.0,0.0005]
[1740517158731,0.00904008,88078.0,88075.0,0.0005]
[1740517159069,0.00041853,88078.0,88075.0,0.0005]
[1740517159269,0.00258565,88078.0,88077.0,0.07098424]
[1740517159483,0.00258565,88078.0,88077.0,0.35503677]
[1740517159679,0.00258565,88078.0,88077.0,0.05644339]
[1740517160264,0.3112072,88078.0,88077.0,0.05644339]
[1740517160470,0.3112072,88078.0,88077.0,0.05121212]
[1740517161148,0.00258565,88078.0,88077.0,0.05121212]
[1740517161324,0.1815102,88078.0,88077.0,0.05121212]
[1740517161531,0.00258565,88078.0,88077.0,0.05121212]
[1740517162137,0.00258565,88078.0,88077.0,0.16495965]
[1740517162338,0.00158565,88078.0,88077.0,0.16495965]
[1740517163126,0.00158565,88078.0,88077.0,0.05121212]
[1740517163329,0.17288865,88078.0,88077.0,0.05121212]
[1740517163528,0.0112072,88078.0,88077.0,0.05121212]
[1740517163922,0.00258565,88078.0,88077.0,0.05121212]
[1740517164181,0.0102072,88078.0,88077.0,0.05121212]
[1740517164389,0.00158565,88078.0,88077.0,0.05121212]
[1740517164995,0.00862155,88099.0,88077.0,0.16495965]
[1740517165135,0.03986866,88100.0,88088.0,0.36212408]
[1740517165334,0.00116993,88099.0,88088.0,0.47587161]
[1740517165557,0.00116993,88099.0,88097.0,0.36212408]
[1740517165777,0.17143393,88099.0,88097.0,0.47587161]
[1740517165937,0.170269,88096.0,88088.0,0.36212408]
[1740517166142,0.00862155,88079.0,88077.0,0.05218954]
[1740517166380,0.170303,88078.0,88077.0,0.05218954]
[1740517166556,0.170302,88079.0,88077.0,0.05218954]
[1740517166763,0.001,88078.0,88077.0,0.05918954]
[1740517167344,0.00862155,88078.0,88077.0,0.05218954]
[1740517167768,0.001,88079.0,88077.0,0.05918954]
[1740517167970,0.001,88079.0,88078.0,0.36212408]
[1740517168172,0.171301,88079.0,88078.0,0.36212408]
[1740517168418,0.00862155,88078.0,88077.0,0.05918954]
[1740517168619,0.001,88079.0,88077.0,0.34324107]
[1740517168797,0.00116993,88099.0,88085.0,0.170288]
[1740517169134,0.00116993,88099.0,88091.0,0.36212408]
[1740517169135,0.170276,88092.0,88091.0,0.36212408]
[1740517169348,0.00862155,88095.0,88078.0,0.36212408]
[1740517169516,0.00862155,88097.0,88088.0,0.36212408]
[1740517169715,0.00862155,88093.0,88088.0,0.36212408]
[1740517169943,0.170281,88090.0,88088.0,0.36212408]
[1740517170134,0.170281,88090.0,88078.0,0.36212408]
[1740517170135,0.00862155,88097.0,88078.0,0.36212408]
[1740517170336,0.11454085,88137.0,88078.0,0.36212408]
[1740517170337,0.00862155,88118.0,88093.0,0.01454085]
[1740517170502,0.04008149,88125.0,88118.0,0.0499]
[1740517170721,0.00116992,88140.0,88120.0,0.01454085]
[1740517171007,0.00979147,88140.0,88118.0,0.0499]
[1740517171180,0.226942,88128.0,88118.0,0.0499]
[1740517171458,0.00116992,88140.0,88119.0,0.0015886]
[1740517171661,0.00116992,88143.0,88120.0,0.01454085]
[1740517171866,0.00116992,88143.0,88122.0,0.01454085]
[1740517172066,0.00116992,88143.0,88140.0,0.170183]
[1740517172182,0.00116992,88143.0,88140.0,0.36212408]
[1740517172970,0.00116992,88144.0,88140.0,0.36212408]
[1740517173119,0.17880255,88142.0,88140.0,0.36212408]
[1740517173319,0.00862155,88142.0,88140.0,0.36212408]
[1740517173908,0.00287172,88141.0,88140.0,0.36912408]
[1740517174347,0.00287172,88141.0,88123.0,0.0821]
[1740517174557,0.00287172,88141.0,88131.0,0.36212408]
[1740517174763,0.00287172,88141.0,88140.0,0.53630708]
[1740517174966,0.0017018,88141.0,88140.0,0.96059546]
[1740517175223,0.0017018,88141.0,88140.0,0.36712408]
[1740517175823,0.0017018,88141.0,88140.0,0.48087161]
[1740517176031,0.0017018,88141.0,88140.0,0.65105461]
[1740517176233,0.00862155,88170.0,88150.0,0.01454085]
[1740517176562,0.226723,88213.0,88164.0,0.1]
[1740517176795,0.00862155,88202.0,88178.0,0.01454085]
[1740517176961,0.00862155,88204.0,88182.0,0.01454085]
[1740517177152,0.00862155,88203.0,88179.0,0.01318721]
[1740517177357,0.03856045,88213.0,88193.0,0.01454085]
[1740517177564,0.00862155,88229.0,88212.0,0.13956418]
[1740517177763,0.00862155,88225.0,88213.0,0.11374753]
[1740517177961,0.00862155,88223.0,88212.0,0.13956418]
[1740517178197,0.00862155,88220.0,88212.0,0.13956418]
[1740517178423,0.00862155,88229.0,88213.0,0.09076418]
[1740517178571,0.00862155,88225.0,88213.0,0.20451171]
[1740517179001,0.00041956,88229.0,88213.0,0.09076418]
[1740517179002,0.00862155,88220.0,88213.0,0.09076418]
[1740517179239,0.00862155,88220.0,88212.0,0.0488]
[1740517179441,0.00041956,88229.0,88216.0,0.01454085]
[1740517179753,0.00862155,88238.0,88227.0,0.09076418]
[1740517179754,0.170009,88231.0,88227.0,0.09076418]
[1740517179897,0.170006,88232.0,88227.0,0.20451171]
[1740517180097,0.226667,88235.0,88227.0,0.20451171]
[1740517180297,0.00074251,88235.0,88216.0,0.00041956]
[1740517180497,0.00074251,88237.0,88225.0,0.09076418]
[1740517180697,0.00074251,88232.0,88225.0,0.09076418]
[1740517180920,0.170016,88227.0,88225.0,0.09076418]
[1740517181122,0.00074251,88225.0,88216.0,0.00041956]
[1740517181332,0.00074251,88224.0,88216.0,0.00041956]
[1740517181483,0.00074251,88230.0,88217.0,0.11533438]
[1740517181690,0.00074251,88236.0,88223.0,0.09076418]
[1740517181992,0.00074251,88232.0,88225.0,0.001]
[1740517182681,0.00074251,88230.0,88225.0,0.001]
[1740517182965,0.00074251,88226.0,88225.0,0.001]
[1740517183103,0.17118272,88228.0,88216.0,0.00041956]
[1740517183310,0.00116872,88228.0,88223.0,0.09076418]
[1740517183520,0.00116872,88228.0,88227.0,0.36546253]
[1740517183721,0.00116872,88228.0,88227.0,0.20998838]
[1740517183960,0.00116872,88228.0,88227.0,0.19544753]
[1740517184285,0.3,88266.0,88227.0,0.19544753]
[1740517184286,0.00074251,88238.0,88227.0,0.19544753]